[Event "Goteborg Open 2024"]
[Site "Goteborgs Schackcentrum, Vegatan 20, Gothenburg, Sweden"]
[Date "2024.08.04"]
[Round "7.15"]
[White "Johansson, Stefan"]
[Black "Karlsson, Stefan"]
[Result "0-1"]
[TimeControl "15 minutes + 5 seconds per move from move one (Round 1 - 4) / 90 minutes + 30 seconds per move from move one (Round 5 - 8)"]
[WhiteFideId "1732242"]
[BlackFideId "1771183"]
[WhiteElo "1933"]
[BlackElo "2042"]

1. e4 {[%clk 01:30:57]} {[%emt 00:00:02]} c5 {[%clk 01:30:45]} {[%emt
00:00:06]} 2. Nf3 {[%clk 01:31:26]} Nc6 {[%clk 01:30:58]} {[%emt 00:00:29]} 3.
b4 {[%clk 01:31:39]} {[%emt 00:00:16]} Nxb4 {[%clk 01:30:59]} {[%emt 00:00:29]}
4. c3 {[%clk 01:31:56]} {[%emt 00:00:14]} Nc6 {[%clk 01:31:25]} {[%emt
00:00:03]} 5. d4 {[%clk 01:32:20]} {[%emt 00:00:06]} cxd4 {[%clk 01:31:50]}
{[%emt 00:00:05]} 6. cxd4 {[%clk 01:32:42]} {[%emt 00:00:08]} e6 {[%clk
01:32:16]} {[%emt 00:00:04]} 7. Be2 {[%clk 01:31:01]} {[%emt 00:02:12]} d5
{[%clk 01:28:56]} {[%emt 00:03:50]} 8. e5 {[%clk 01:30:51]} {[%emt 00:00:40]}
Nge7 {[%clk 01:25:28]} {[%emt 00:03:57]} 9. O-O {[%clk 01:30:38]} {[%emt
00:00:43]} Nf5 {[%clk 01:24:33]} {[%emt 00:01:25]} 10. Nc3 {[%clk 01:26:55]}
{[%emt 00:04:14]} Be7 {[%clk 01:23:31]} {[%emt 00:01:32]} 11. Rb1 {[%clk
01:23:39]} {[%emt 00:03:46]} O-O {[%clk 01:19:06]} {[%emt 00:04:54]} 12. Bf4
{[%clk 01:20:44]} {[%emt 00:03:25]} a6 {[%clk 01:17:24]} {[%emt 00:02:12]} 13.
a4 {[%clk 01:05:02]} {[%emt 00:16:12]} Rb8 {[%clk 01:13:05]} {[%emt 00:04:49]}
14. Rb2 {[%emt 00:14:10]} Bd7 {[%clk 01:06:53]} {[%emt 00:06:38]} 15. Qd3
{[%clk 00:43:06]} {[%emt 00:08:50]} Na5 {[%clk 01:04:35]} {[%emt 00:02:48]} 16.
Rfb1 {[%clk 00:39:37]} {[%emt 00:03:58]} Bc6 {[%clk 00:43:37]} {[%emt
00:21:28]} 17. Bd1 {[%clk 00:33:27]} {[%emt 00:06:42]} Nc4 {[%clk 00:38:50]}
{[%emt 00:05:15]} 18. Rb3 {[%clk 00:26:27]} {[%emt 00:07:31]} Qd7 {[%clk
00:29:52]} {[%emt 00:09:27]} 19. Bc2 {[%clk 00:23:29]} {[%emt 00:03:29]} g6
{[%clk 00:29:51]} {[%emt 00:00:31]} 20. g4 {[%clk 00:21:31]} {[%emt 00:02:29]}
Ng7 {[%clk 00:24:15]} {[%emt 00:06:06]} 21. Bh6 {[%clk 00:14:07]} {[%emt
00:07:54]} f5 {[%clk 00:21:35]} {[%emt 00:03:09]} 22. exf6 {[%clk 00:13:13]}
{[%emt 00:01:25]} Bxf6 {[%clk 00:21:06]} {[%emt 00:00:59]} 23. Ng5 {[%emt
00:02:13]} Bxg5 {[%clk 00:15:43]} {[%emt 00:05:51]} 24. Bxg5 {[%clk 00:11:49]}
{[%emt 00:00:12]} e5 {[%clk 00:16:03]} {[%emt 00:00:10]} 25. Qg3 {[%clk
00:10:19]} {[%emt 00:02:00]} Ne6 {[%clk 00:14:26]} {[%emt 00:02:07]} 26. Bh6
{[%clk 00:09:51]} {[%emt 00:00:58]} Nxd4 {[%clk 00:14:49]} {[%emt 00:00:07]} 27.
Bxf8 {[%clk 00:09:31]} {[%emt 00:00:50]} Rxf8 {[%clk 00:15:12]} {[%emt
00:00:08]} 28. Bd1 {[%clk 00:09:18]} {[%emt 00:00:43]} Nxb3 {[%clk 00:13:35]}
{[%emt 00:02:06]} 29. Bxb3 {[%clk 00:09:24]} {[%emt 00:00:24]} Nd2 {[%clk
00:11:50]} {[%emt 00:02:15]} 30. Rb2 {[%clk 00:09:16]} {[%emt 00:00:38]} Nxb3
{[%clk 00:11:33]} {[%emt 00:00:48]} 31. Rxb3 {[%clk 00:09:38]} {[%emt
00:00:08]} d4 {[%clk 00:11:21]} {[%emt 00:00:40]} 32. Ne2 {[%clk 00:08:53]}
{[%emt 00:01:15]} Qd5 {[%clk 00:11:37]} {[%emt 00:00:14]} 0-1

[Event "Goteborg Open 2024"]
[Site "Goteborgs Schackcentrum, Vegatan 20, Gothenburg, Sweden"]
[Date "2024.08.04"]
[Round "7.16"]
[White "Ulmer, Maya Vissing"]
[Black "Olsson, Jonas"]
[Result "1-0"]
[TimeControl "15 minutes + 5 seconds per move from move one (Round 1 - 4) / 90 minutes + 30 seconds per move from move one (Round 5 - 8)"]
[WhiteFideId "1479997"]
[BlackFideId "1734415"]
[WhiteElo "1676"]
[BlackElo "1741"]

1. d4 {[%clk 01:30:58]} {[%emt 00:00:01]} e6 {[%clk 01:30:35]} {[%emt
00:00:25]} 2. c4 {[%clk 01:31:21]} {[%emt 00:00:07]} f5 {[%clk 01:30:25]}
{[%emt 00:00:39]} 3. g3 {[%clk 01:31:18]} {[%emt 00:00:35]} Nf6 {[%clk
01:30:13]} {[%emt 00:00:42]} 4. Bg2 {[%clk 01:31:30]} {[%emt 00:00:19]} d5
{[%clk 01:28:54]} {[%emt 00:01:47]} 5. cxd5 {[%clk 01:29:29]} {[%emt 00:02:32]}
exd5 {[%clk 01:29:08]} {[%emt 00:00:16]} 6. Nf3 {[%clk 01:28:46]} {[%emt
00:01:13]} Nc6 {[%clk 01:28:11]} {[%emt 00:01:27]} 7. O-O {[%clk 01:28:33]}
{[%emt 00:00:42]} Be7 {[%clk 01:27:50]} {[%emt 00:00:51]} 8. Nc3 {[%clk
01:27:49]} {[%emt 00:01:15]} O-O {[%clk 01:27:59]} {[%emt 00:00:21]} 9. Qb3
{[%clk 01:26:55]} {[%emt 00:01:24]} Na5 {[%clk 01:25:59]} {[%emt 00:02:30]} 10.
Qc2 {[%clk 01:22:51]} {[%emt 00:04:34]} Re8 {[%clk 01:23:58]} {[%emt 00:02:30]}
11. Ne5 {[%clk 01:20:21]} {[%emt 00:03:00]} c6 {[%clk 01:22:16]} {[%emt
00:02:13]} 12. Rd1 {[%clk 01:13:56]} {[%emt 00:06:55]} Nc4 {[%clk 01:20:55]}
{[%emt 00:01:51]} 13. Nxc4 {[%clk 01:04:03]} {[%emt 00:10:23]} dxc4 {[%clk
01:20:41]} {[%emt 00:00:44]} 14. d5 {[%clk 01:04:00]} {[%emt 00:00:33]} Qb6
{[%clk 01:13:59]} {[%emt 00:07:12]} 15. Be3 {[%clk 00:59:37]} {[%emt 00:04:52]}
Bc5 {[%clk 01:13:36]} {[%emt 00:00:53]} 16. Na4 {[%clk 00:59:07]} {[%emt
00:01:01]} Qd8 {[%clk 01:07:43]} {[%emt 00:06:23]} 17. Bxc5 {[%clk 00:56:41]}
{[%emt 00:02:57]} cxd5 {[%clk 01:07:19]} {[%emt 00:00:53]} 18. Nc3 {[%clk
00:56:00]} {[%emt 00:01:09]} Be6 {[%clk 01:06:45]} {[%emt 00:01:06]} 19. Bd4
{[%clk 00:54:57]} {[%emt 00:01:33]} Ne4 {[%clk 01:05:05]} {[%emt 00:02:10]} 20.
Bxe4 {[%clk 00:43:43]} {[%emt 00:11:44]} fxe4 {[%clk 01:04:00]} {[%emt
00:01:34]} 21. Qd2 {[%clk 00:43:07]} {[%emt 00:01:06]} b6 {[%clk 01:03:19]}
{[%emt 00:01:11]} 22. Be3 {[%clk 00:40:06]} {[%emt 00:03:31]} Qf6 {[%clk
01:02:14]} {[%emt 00:01:35]} 23. Nxd5 {[%clk 00:39:16]} {[%emt 00:01:20]} Bxd5
{[%clk 01:01:16]} {[%emt 00:01:29]} 24. Qxd5+ {[%clk 00:39:40]} {[%emt
00:00:06]} Kh8 {[%clk 01:00:41]} {[%emt 00:01:05]} 25. Bd4 {[%clk 00:38:51]}
{[%emt 00:01:18]} Qg6 {[%clk 00:59:44]} {[%emt 00:01:29]} 26. Qxc4 {[%clk
00:37:22]} {[%emt 00:01:58]} Rac8 {[%clk 00:57:55]} {[%emt 00:02:18]} 27. Qa4
{[%clk 00:35:39]} {[%emt 00:02:14]} a5 {[%clk 00:57:09]} {[%emt 00:01:16]} 28.
Rac1 {[%clk 00:33:08]} {[%emt 00:03:00]} Rcd8 {[%clk 00:56:09]} {[%emt
00:01:30]} 29. Be3 {[%clk 00:28:18]} {[%emt 00:05:20]} Rb8 {[%clk 00:55:34]}
{[%emt 00:01:05]} 30. Rc6 {[%clk 00:25:44]} {[%emt 00:03:04]} Re6 {[%clk
00:53:51]} {[%emt 00:02:13]} 31. Rxe6 {[%clk 00:25:10]} {[%emt 00:01:05]} Qxe6
{[%clk 00:54:07]} {[%emt 00:00:13]} 32. b3 {[%clk 00:24:08]} {[%emt 00:01:33]}
h5 {[%clk 00:53:47]} {[%emt 00:00:49]} 33. Qd7 {[%clk 00:23:36]} {[%emt
00:01:01]} Qg8 {[%clk 00:51:05]} {[%emt 00:03:12]} 34. Rd6 {[%clk 00:22:58]}
{[%emt 00:01:09]} Qh7 {[%clk 00:50:07]} {[%emt 00:01:29]} 35. Rxb6 {[%clk
00:21:45]} {[%emt 00:01:42]} Rg8 {[%clk 00:49:32]} {[%emt 00:01:04]} 36. h4
{[%clk 00:21:23]} {[%emt 00:00:53]} 1-0

[Event "Goteborg Open 2024"]
[Site "Goteborgs Schackcentrum, Vegatan 20, Gothenburg, Sweden"]
[Date "2024.08.04"]
[Round "7.17"]
[White "Shchetinin, Oleg"]
[Black "Eklund, Rickard"]
[Result "1-0"]
[TimeControl "15 minutes + 5 seconds per move from move one (Round 1 - 4) / 90 minutes + 30 seconds per move from move one (Round 5 - 8)"]
[WhiteFideId "1740210"]
[BlackFideId "1789040"]
[WhiteElo "1742"]
[BlackElo "1595"]

1. e4 {[%clk 01:30:57]} {[%emt 00:00:01]} c5 {[%clk 01:30:50]} {[%emt
00:00:11]} 2. a3 {[%clk 01:31:21]} {[%emt 00:00:07]} d6 {[%clk 01:30:40]}
{[%emt 00:00:39]} 3. b4 {[%clk 01:31:30]} {[%emt 00:00:21]} cxb4 {[%clk
01:30:28]} {[%emt 00:00:43]} 4. axb4 {[%clk 01:31:53]} {[%emt 00:00:07]} Nf6
{[%clk 01:30:38]} {[%emt 00:00:19]} 5. d3 {[%clk 01:30:28]} {[%emt 00:01:56]}
e6 {[%clk 01:27:40]} {[%emt 00:03:27]} 6. Nf3 {[%clk 01:29:48]} {[%emt
00:01:10]} Be7 {[%clk 01:27:26]} {[%emt 00:00:45]} 7. g3 {[%clk 01:26:56]}
{[%emt 00:03:22]} O-O {[%clk 01:20:44]} {[%emt 00:07:11]} 8. Bg2 {[%clk
01:27:09]} {[%emt 00:00:18]} e5 {[%clk 01:19:56]} {[%emt 00:01:18]} 9. O-O
{[%clk 01:27:11]} {[%emt 00:00:27]} Be6 {[%clk 01:14:12]} {[%emt 00:06:14]} 10.
Be3 {[%clk 01:23:50]} {[%emt 00:03:51]} Ng4 {[%clk 01:11:13]} {[%emt 00:03:28]}
11. Qd2 {[%clk 01:18:30]} {[%emt 00:05:52]} Nxe3 12. Qxe3 {[%clk 01:16:19]} b6
{[%clk 01:09:28]} {[%emt 00:00:33]} 13. c4 {[%clk 01:12:03]} {[%emt 00:04:45]}
Nd7 {[%clk 01:06:44]} {[%emt 00:03:15]} 14. Nc3 {[%clk 01:11:27]} {[%emt
00:01:05]} f5 {[%clk 01:05:43]} {[%emt 00:01:30]} 15. exf5 {[%clk 01:05:40]}
{[%emt 00:06:18]} Bxf5 {[%clk 01:05:51]} {[%emt 00:00:21]} 16. Nd2 {[%clk
01:05:06]} {[%emt 00:01:05]} Bg5 {[%clk 01:02:08]} {[%emt 00:04:12]} 17. Qe2
{[%clk 01:04:22]} {[%emt 00:01:15]} Bf6 {[%clk 00:58:51]} {[%emt 00:03:47]} 18.
Bxa8 {[%clk 01:01:39]} {[%emt 00:03:14]} Qxa8 {[%emt 00:00:34]} 19. Rac1 {[%clk
01:00:04]} {[%emt 00:01:59]} Bh3 {[%clk 00:58:26]} {[%emt 00:00:56]} 20. Qe4
{[%clk 00:57:37]} {[%emt 00:02:56]} Qxe4 {[%clk 00:55:26]} {[%emt 00:03:31]} 21.
Ndxe4 {[%clk 00:57:43]} {[%emt 00:00:25]} Bxf1 {[%clk 00:55:30]} {[%emt
00:00:25]} 22. Kxf1 {[%clk 00:58:05]} {[%emt 00:00:07]} Be7 {[%clk 00:53:43]}
{[%emt 00:02:17]} 23. Nd5 {[%clk 00:57:59]} {[%emt 00:00:36]} Bf6 {[%clk
00:51:23]} {[%emt 00:02:50]} 24. Nxd6 {[%clk 00:57:14]} {[%emt 00:01:16]} Bg5
{[%clk 00:48:50]} {[%emt 00:03:03]} 25. Ra1 {[%clk 00:56:34]} {[%emt 00:01:08]}
a5 {[%clk 00:48:49]} {[%emt 00:00:33]} 26. bxa5 {[%clk 00:56:38]} {[%emt
00:00:26]} bxa5 {[%clk 00:48:59]} {[%emt 00:00:19]} 27. Rxa5 {[%clk 00:56:54]}
{[%emt 00:00:14]} Bd2 {[%clk 00:48:43]} {[%emt 00:00:46]} 28. Rb5 {[%clk
00:55:35]} {[%emt 00:01:49]} h5 {[%clk 00:47:12]} {[%emt 00:02:01]} 29. c5
{[%clk 00:53:00]} {[%emt 00:03:05]} 1-0

[Event "Goteborg Open 2024"]
[Site "Goteborgs Schackcentrum, Vegatan 20, Gothenburg, Sweden"]
[Date "2024.08.04"]
[Round "7.19"]
[White "Israelsson, Lukas"]
[Black "Hammar, Arvid"]
[Result "1-0"]
[TimeControl "15 minutes + 5 seconds per move from move one (Round 1 - 4) / 90 minutes + 30 seconds per move from move one (Round 5 - 8)"]
[WhiteFideId "1784749"]
[BlackFideId "1735977"]
[WhiteElo "1615"]
[BlackElo "1653"]

1. e4 {[%clk 01:30:59]} c5 {[%clk 01:30:33]} {[%emt 00:00:29]} 2. Nc3 {[%clk
01:30:58]} {[%emt 00:00:30]} e6 {[%clk 01:30:36]} {[%emt 00:00:27]} 3. g3
{[%clk 01:31:06]} {[%emt 00:00:21]} d5 {[%clk 01:30:42]} {[%emt 00:00:25]} 4.
Bg2 {[%clk 01:30:19]} {[%emt 00:01:15]} d4 {[%clk 01:30:45]} {[%emt 00:00:29]}
5. Nce2 {[%clk 01:30:15]} {[%emt 00:00:32]} e5 {[%clk 01:30:17]} {[%emt
00:00:59]} 6. d3 {[%clk 01:30:26]} {[%emt 00:00:19]} Be7 {[%clk 01:30:12]}
{[%emt 00:00:35]} 7. f4 {[%clk 01:29:51]} {[%emt 00:01:05]} Nc6 {[%clk
01:30:11]} {[%emt 00:00:31]} 8. Nf3 {[%clk 01:28:30]} {[%emt 00:01:51]} f6
{[%clk 01:28:04]} {[%emt 00:02:37]} 9. O-O {[%clk 01:27:59]} {[%emt 00:01:01]}
Bg4 {[%clk 01:23:56]} {[%emt 00:04:39]} 10. fxe5 {[%clk 01:24:26]} {[%emt
00:04:03]} fxe5 {[%clk 01:23:32]} {[%emt 00:00:54]} 11. c3 {[%clk 01:22:35]}
{[%emt 00:02:21]} Nf6 {[%clk 01:23:14]} {[%emt 00:00:48]} 12. cxd4 {[%clk
01:20:21]} {[%emt 00:02:43]} cxd4 {[%clk 01:23:28]} {[%emt 00:00:16]} 13. Bd2
{[%clk 01:20:24]} {[%emt 00:00:27]} O-O {[%clk 01:22:22]} {[%emt 00:01:36]} 14.
Qb3+ {[%clk 01:18:48]} {[%emt 00:02:06]} Kh8 {[%clk 01:21:38]} {[%emt
00:01:14]} 15. Qxb7 {[%clk 01:18:29]} {[%emt 00:00:49]} Qd6 {[%clk 01:20:56]}
{[%emt 00:01:11]} 16. Rac1 {[%clk 01:16:28]} {[%emt 00:02:32]} Rfc8 {[%clk
01:20:23]} {[%emt 00:01:03]} 17. Ng5 {[%clk 01:04:21]} {[%emt 00:12:37]} Bh5
{[%clk 01:18:18]} {[%emt 00:02:36]} 18. Bh3 {[%clk 01:04:25]} {[%emt 00:00:27]}
Ng4 {[%clk 01:09:56]} {[%emt 00:08:50]} 19. Bxg4 {[%clk 01:02:52]} {[%emt
00:02:04]} Bxg5 {[%clk 01:09:57]} {[%emt 00:00:28]} 20. Bxc8 {[%clk 01:03:02]}
{[%emt 00:00:20]} Bxd2 {[%clk 01:08:27]} {[%emt 00:02:01]} 21. Qxa8 {[%clk
01:02:40]} {[%emt 00:00:52]} Be3+ {[%clk 01:08:21]} {[%emt 00:00:34]} 22. Kg2
{[%clk 01:02:24]} {[%emt 00:00:45]} Nd8 {[%clk 01:06:19]} {[%emt 00:02:34]} 23.
Qd5 {[%clk 00:58:45]} {[%emt 00:04:09]} Qe7 {[%clk 01:04:17]} {[%emt 00:02:32]}
24. Rc7 {[%clk 00:57:06]} {[%emt 00:02:10]} Qe8 {[%clk 01:03:09]} {[%emt
00:01:36]} 25. Rd7 {[%clk 00:56:57]} {[%emt 00:00:39]} Bg5 {[%clk 01:01:11]}
{[%emt 00:02:28]} 26. Qxe5 {[%clk 00:56:38]} {[%emt 00:00:49]} Ne6 {[%clk
01:00:26]} {[%emt 00:01:16]} 27. Nxd4 {[%clk 00:52:57]} {[%emt 00:04:12]} Qxc8
{[%clk 00:53:54]} {[%emt 00:07:01]} 28. Nxe6 {[%clk 00:52:30]} {[%emt
00:00:57]} Qc2+ {[%clk 00:49:45]} {[%emt 00:04:39]} 29. Rf2 {[%clk 00:52:46]}
{[%emt 00:00:14]} Bf3+ {[%clk 00:49:24]} {[%emt 00:00:51]} 30. Kxf3 {[%clk
00:53:04]} {[%emt 00:00:11]} Qd1+ {[%clk 00:49:33]} {[%emt 00:00:22]} 31. Kg2
{[%clk 00:53:21]} {[%emt 00:00:12]} 1-0

[Event "Goteborg Open 2024"]
[Site "Goteborgs Schackcentrum, Vegatan 20, Gothenburg, Sweden"]
[Date "2024.08.04"]
[Round "7.20"]
[White "Saleh, Saqr"]
[Black "Hitcher, Oscar"]
[Result "1-0"]
[TimeControl "15 minutes + 5 seconds per move from move one (Round 1 - 4) / 90 minutes + 30 seconds per move from move one (Round 5 - 8)"]
[WhiteFideId "1785877"]
[BlackFideId "1746901"]
[WhiteElo "1835"]
[BlackElo "1679"]

1. c4 {[%clk 01:28:56]} {[%emt 00:02:05]} g6 {[%clk 01:30:34]} {[%emt
00:00:26]} 2. g3 {[%clk 01:29:00]} {[%emt 00:00:26]} Bg7 {[%clk 01:30:42]}
{[%emt 00:00:22]} 3. Nc3 {[%clk 01:29:25]} {[%emt 00:00:05]} d6 {[%clk
01:30:45]} {[%emt 00:00:27]} 4. Bg2 {[%clk 01:29:52]} {[%emt 00:00:03]} c6
{[%clk 01:30:36]} {[%emt 00:00:39]} 5. Nf3 {[%clk 01:30:07]} {[%emt 00:00:15]}
Bg4 {[%clk 01:30:07]} {[%emt 00:00:59]} 6. O-O {[%clk 01:29:30]} {[%emt
00:01:08]} Nd7 {[%clk 01:29:59]} {[%emt 00:00:37]} 7. d3 {[%clk 01:24:17]}
{[%emt 00:05:44]} Qc7 {[%clk 01:28:12]} {[%emt 00:02:15]} 8. h3 {[%clk
01:21:47]} {[%emt 00:03:01]} Bxf3 {[%clk 01:28:19]} {[%emt 00:00:23]} 9. exf3
{[%emt 00:04:09]} Ngf6 {[%clk 01:28:00]} {[%emt 00:00:48]} 10. Re1 {[%emt
00:01:25]} e6 {[%emt 00:05:42]} 11. Be3 {[%clk 01:14:10]} {[%emt 00:00:06]} O-O
{[%clk 01:24:47]} {[%emt 00:02:00]} 12. Qd2 {[%clk 01:09:27]} {[%emt 00:05:13]}
Ne5 {[%clk 01:23:47]} {[%emt 00:01:30]} 13. f4 {[%clk 01:08:20]} {[%emt
00:01:36]} Ned7 {[%clk 01:23:37]} {[%emt 00:00:40]} 14. Ne4 {[%clk 00:59:25]}
{[%emt 00:09:25]} Nxe4 {[%clk 01:22:13]} {[%emt 00:01:54]} 15. dxe4 {[%clk
00:59:23]} {[%emt 00:00:32]} Nb6 {[%clk 01:19:43]} {[%emt 00:03:00]} 16. Rac1
{[%clk 00:51:26]} {[%emt 00:08:27]} Rad8 {[%clk 01:17:26]} {[%emt 00:02:46]} 17.
b3 {[%clk 00:49:53]} {[%emt 00:02:04]} a6 {[%clk 01:16:46]} {[%emt 00:01:09]}
18. Red1 {[%clk 00:45:50]} {[%emt 00:04:34]} Rfe8 {[%clk 01:15:59]} {[%emt
00:01:16]} 19. Qc2 {[%clk 00:42:00]} {[%emt 00:04:21]} Na8 {[%clk 01:13:16]}
{[%emt 00:03:14]} 20. f5 {[%clk 00:35:16]} {[%emt 00:07:13]} e5 {[%clk
01:09:22]} {[%emt 00:04:23]} 21. fxg6 {[%clk 00:35:20]} {[%emt 00:00:28]} fxg6
{[%clk 01:08:54]} {[%emt 00:00:56]} 22. Rd3 {[%clk 00:31:05]} {[%emt 00:04:46]}
Qf7 {[%clk 01:07:27]} {[%emt 00:01:56]} 23. Rcd1 {[%clk 00:30:58]} {[%emt
00:00:38]} Bf8 {[%clk 01:07:31]} {[%emt 00:00:26]} 24. Bc5 {[%clk 00:28:51]}
{[%emt 00:02:37]} Qf6 {[%clk 01:06:21]} {[%emt 00:01:39]} 25. Bb4 {[%clk
00:24:59]} {[%emt 00:04:24]} c5 {[%clk 01:05:28]} {[%emt 00:01:23]} 26. Bd2
{[%clk 00:25:07]} {[%emt 00:00:21]} Nc7 {[%clk 01:04:46]} {[%emt 00:01:11]} 27.
h4 {[%clk 00:21:33]} {[%emt 00:04:05]} Ne6 {[%clk 01:04:13]} {[%emt 00:01:03]}
28. Qc1 {[%clk 00:22:01]} {[%emt 00:00:03]} Rd7 {[%clk 00:59:11]} {[%emt
00:05:30]} 29. Bh3 {[%clk 00:21:15]} Rf7 {[%clk 00:57:30]} {[%emt 00:03:27]} 30.
Rf1 {[%emt 00:06:37]} Nd4 31. Qd1 {[%clk 00:15:38]} {[%emt 00:01:07]} Nf3+
{[%clk 00:54:41]} {[%emt 00:02:42]} 32. Kg2 {[%clk 00:15:52]} {[%emt 00:00:16]}
Nxd2 {[%clk 00:54:25]} {[%emt 00:00:46]} 33. Qxd2 {[%clk 00:16:16]} {[%emt
00:00:06]} b6 {[%clk 00:54:18]} {[%emt 00:00:38]} 34. b4 {[%clk 00:13:56]} cxb4
{[%clk 00:53:27]} {[%emt 00:04:11]} 35. Qxb4 {[%clk 00:11:32]} d5 {[%clk
00:53:10]} {[%emt 00:03:41]} 36. Qa4 {[%clk 00:12:01]} Rd8 {[%clk 00:46:01]}
{[%emt 00:07:39]} 37. cxd5 {[%clk 00:11:25]} Kg7 {[%clk 00:45:25]} {[%emt
00:02:12]} 38. Be6 {[%clk 00:10:34]} {[%emt 00:01:21]} Ra7 {[%clk 00:44:23]}
{[%emt 00:01:33]} 39. Rf3 {[%clk 00:10:55]} {[%emt 00:00:09]} b5 {[%clk
00:43:49]} {[%emt 00:01:04]} 40. Qa5 {[%clk 00:10:14]} {[%emt 00:01:12]} Qe7
{[%clk 00:43:05]} {[%emt 00:01:13]} 41. Rf7+ {[%clk 00:10:42]} {[%emt
00:00:02]} Qxf7 {[%clk 00:43:12]} {[%emt 00:00:22]} 42. Bxf7 {[%clk 00:11:11]}
{[%emt 00:00:03]} Rdd7 {[%clk 00:43:30]} {[%emt 00:00:11]} 43. Be6 {[%clk
00:10:39]} {[%emt 00:01:03]} Rdc7 {[%clk 00:43:50]} {[%emt 00:00:10]} 44. Qd2
{[%clk 00:10:17]} {[%emt 00:00:51]} b4 {[%clk 00:43:56]} {[%emt 00:00:24]} 45.
Rc1 {[%clk 00:09:15]} {[%emt 00:01:32]} Rcb7 {[%clk 00:44:00]} {[%emt
00:00:26]} 46. Qb2 {[%clk 00:09:00]} {[%emt 00:00:44]} Bd6 {[%clk 00:44:17]}
{[%emt 00:00:14]} 47. Rc6 {[%clk 00:09:02]} {[%emt 00:00:28]} Bb8 {[%clk
00:44:05]} {[%emt 00:00:42]} 48. Rc8 {[%clk 00:09:09]} {[%emt 00:00:23]} h6
{[%clk 00:44:00]} {[%emt 00:00:35]} 49. Rxb8 {[%clk 00:09:24]} {[%emt
00:00:15]} 1-0